[Event "TUR-ch U13-18 Open 2023"]
[Site "Antalya"]
[Date "2023.01.26"]
[Round "8"]
[White "Senkal, Defne"]
[Black "Gorucu, Yagmur"]
[Result "1-0"]
[ECO "B51"]
[WhiteElo "1447"]
[BlackElo "1113"]
[Annotator "NA RC COMBH"]
[PlyCount "69"]
[EventDate "2023.01.17"]
[EventType "swiss"]
[EventCountry "TUR"]
[SourceTitle "playchess.com"]
[Source "ChessBase"]
[SourceQuality "1"]
[TimeControl "5400+30"]

1. e4 c5 2. Nf3 d6 3. Bb5+ Nd7 4. c4 Ngf6 5. O-O e6 6. Nc3 Be7 7. d4 cxd4 8. Nxd4 O-O 9. Bxd7 Qxd7 10. h3 a6 11. Be3 Qc7 12. Qe2 Bd7 13. Rac1 Rac8 14. b3 Rfd8 15. f4 Bc6 16. Bf2 Qb8 17. f5 e5 18. Nf3 b5 19. Kh1 bxc4 20. bxc4 Qa8 21. Nd2 Rb8 22. Rb1 Rdc8 23. Rb3 Rxb3 24. axb3 Qb7 25. Ra1 Ra8 26. Nd5 Bxd5 27. exd5 a5 {[%emt 1:33:51]} 28. Ra4 {[%emt 1:33:13]} Nd7 {[%emt 0:00:30]} 29. Qf3 {[%emt 0:00:30]} Nf6 {[%emt 0:00:30]} 30. Bh4 {[%emt 0:00:30]} Ne8 {[%emt 0:00:30]} 31. Be1 {[%emt 0:03:54]} Nf6 {[%emt 0:01:01]} 32. Nb1 {[%emt 0:02:26]} Qb6 {[%emt 0:03:42]} 33. Bf2 {[%emt 0:00:47]} Qb7 {[%emt 0:00:40]} 34. Na3 {[%emt 0:00:43]} Nd7 {[%emt 0:01:26]} 35. Nb5 {[%emt 0:00:10]} 1-0

[Event "TUR-ch U13-18 Open 2023"]
[Site "Antalya"]
[Date "2023.01.26"]
[Round "8"]
[White "Yamakoglu, Mustafa Ege"]
[Black "Karaca, Yigit"]
[Result "0-1"]
[ECO "B40"]
[WhiteElo "1372"]
[BlackElo "1933"]
[Annotator "TA"]
[PlyCount "110"]
[EventDate "2023.01.17"]
[EventType "swiss"]
[EventCountry "TUR"]
[SourceTitle "playchess.com"]
[Source "ChessBase"]
[SourceQuality "1"]
[TimeControl "5400+30"]

{[%evp 9,110,25,21,18,19,0,0,0,0,-6,10,-28,-25,-5,-8,-37,-30,-37,-12,-62,-41,-72,-82,-150,-156,-154,-137,-158,-146,-150,-140,-141,-141,-138,-155,-153,-144,-163,-142,-139,-139,-139,-119,-116,-119,-122,-112,-176,-121,-193,-151,-217,-208,-241,-223,-238,-217,-501,-497,-452,-447,-439,-260,-402,0,-404,-404,-406,-389,-6303,-389,-430,-430,-573,-366,-355,-331,-695,-526,-725,-643,-1658,-1532,-29992,-29993,-29993,-29991,-29991,-29984,-29992,-29985,-29991,-29976,-29976,-29977,-29992,-29978,-29976,-6555,-29973,-29976,-7388,-7216]} 1. e4 c5 2. Nc3 e6 3. Nf3 a6 4. Be2 Nf6 5. O-O Qc7 6. d4 {B40: Sicilian: 2...e6, Unusual lines.} cxd4 7. Qxd4 Nc6 8. Qe3 {The position is equal.} Be7 9. h3 d6 10. Rd1 O-O 11. a4 b6 12. b3 {[#]} Nb4 $146 ({Predecessor:} 12... Bb7 13. Ba3 Rac8 14. Rac1 Rfd8 15. Bb2 Nd7 16. Nd2 Bf6 17. Nc4 Nc5 18. Bf3 h6 {0-1 Sarenac,I (2397)-Gelman,A (2410) Titled Tuesday intern op 2nd Febr blitz 2019 (6)}) 13. Qd2 Bb7 14. Bb2 ({Better is} 14. Ba3 $11 a5 15. Bd3 (15. Nb5 Qb8 $11)) 14... Rfd8 $15 15. Bd3 d5 {Black converts the advantage convincingly.} 16. e5 {[#]} (16. exd5 $142 Nfxd5 17. Nxd5 Rxd5 18. Rac1) 16... Ne4 $1 $17 17. Qe1 {[%cal Rc3e4]} Rac8 {[%cal Re4c3]} 18. Nxe4 dxe4 19. Bxe4 Nxc2 20. Bxc2 Qxc2 21. Bd4 Bxf3 ({Inferior is} 21... Qxb3 22. Rdb1 Qd3 23. Bxb6 Bxf3 24. gxf3 $17 (24. Bxd8 $2 Qg6 $19)) 22. gxf3 Qxb3 {Black has more active pieces.} 23. Qe3 Qc2 24. Rdc1 Qg6+ 25. Kh2 b5 26. axb5 axb5 {Strongly threatening ...Rxc1.} 27. Bb6 Re8 28. Bc5 (28. Ra5 $17 {was the only chance.}) 28... Bh4 $40 {[%mdl 128] White is in trouble.} (28... Rxc5 $19 29. Rxc5 Bxc5 30. Qxc5 Qd3) 29. Bd6 (29. Ra5 $17 {was called for.}) 29... Qf5 30. f4 (30. Rxc8 $17 {keeps fighting.} Rxc8 31. Qc1 {[%mdl 64] Back Rank}) 30... Kh8 $19 31. Rxc8 Rxc8 32. Rc1 Rg8 33. Rc7 $2 (33. Qf3) 33... g5 34. Qf3 gxf4 ({And not} 34... Qxf4+ 35. Kg2 $17) 35. Rc1 {Dodges Qb1} Qg5 (35... h6 $142 {...Kh7 is the strong threat.} 36. Bb4 Kh7) 36. Rf1 (36. Bb4 {was worth a try.}) 36... Qf5 $2 (36... h6 $19 {aiming for ...Qf5.} 37. Ra1 Qf5) 37. Rg1 $2 {[%mdl 8192]} (37. Rc1 $1 $11) 37... Rxg1 38. Kxg1 {[%mdl 4096] Endgame KQB-KQB} Kg7 39. Qa8 $2 {[%emt 1:49:50]} (39. Kg2 h5 40. Qa8) 39... Qg6+ $2 {[%emt 1:48:20]} ({Worse is} 39... Qxh3 40. Qf8+ Kg6 41. Qg8+ Kf5 42. Qxf7+ Ke4 43. Qb7+ Kf5 44. Qf7+ Ke4 45. Qb7+ Kf5 46. Qf7+ $11) (39... f3 {( -> ...Qg5+)} 40. Qf8+ Kg6 41. Qg8+ Kh5 42. Qg4+ Qxg4+ 43. hxg4+ Kxg4) 40. Kh1 {[%emt 0:00:30][%csl Gd6][%cal Ra8f8]} h6 {[%emt 0:00:30]} (40... Bxf2 $2 41. Qf8#) 41. Qf3 {[%emt 0:00:30]} Qg5 {[%emt 0:00:30]} 42. Kh2 {[%emt 0:00:30]} Qf5 {[%emt 0:00:30]} 43. Kh1 $2 {[%emt 0:00:30] [#]} (43. Kg2) 43... b4 $1 {[%emt 0:00:30][%cal Ob4b3] And now ...b3! would win.} 44. Qg2+ {[%emt 0:00:30]} (44. Bc5 b3) 44... Kh7 {[%emt 0:00:30]} 45. Qf3 {[%emt 0:00:30] [#]} b3 $1 {[%emt 0:00:30]} 46. Qxb3 {[%emt 0:00:30]} (46. Ba3 Qxe5) 46... f3 {[%emt 0:00:30]} 47. Kh2 {[%emt 0:00:30]} Bxf2 {[%emt 0:00:30]} 48. Qd1 {[%emt 0:00:30]} Qf4+ {[%emt 0:00:30]} 49. Kh1 {[%emt 0:00:30]} Qg3 {[%emt 0:00:30][%cal Rg3h3]} 50. Qd3+ {[%emt 0:00:30]} Kg8 {[%emt 0:00:30][%cal Rg3h3]} 51. Qf1 {[%emt 0:00:30]} Be3 {[%emt 0:00:30]} 52. Bc7 {[%emt 0:00:00]} Bf4 {[%emt 0:01:13][%csl Gf4][%cal Rg3h2]} 53. Qg1 {[%emt 0:00:29]} Qxg1+ {[%emt 0:00:05]} 54. Kxg1 {[%emt 0:00:30]} Bg3 {[%emt 0:00:00]} 55. Bb6 {[%emt 0:00:44]} Kh7 {[%emt 0:00:00] Weighted Error Value: White=0.96/Black=0.45} 0-1

[Event "TUR-ch U13-18 Open 2023"]
[Site "Antalya"]
[Date "2023.01.26"]
[Round "8"]
[White "Tarman, Ufuk"]
[Black "Kutdemir, Mehmet"]
[Result "1/2-1/2"]
[ECO "C42"]
[WhiteElo "1282"]
[BlackElo "1369"]
[Annotator "NA RC COMBH"]
[PlyCount "70"]
[EventDate "2023.01.17"]
[EventType "swiss"]
[EventCountry "TUR"]
[SourceTitle "playchess.com"]
[Source "ChessBase"]
[SourceQuality "1"]
[TimeControl "5400+30"]

1. e4 e5 2. Nf3 Nf6 3. d4 Nxe4 4. Nxe5 d6 5. Nf3 d5 6. Bd3 Be7 7. O-O O-O 8. Re1 Bf5 9. Nbd2 Nxd2 10. Bxf5 Nxf3+ 11. Qxf3 Bf6 12. c3 g6 13. Bd3 c6 14. Bf4 Nd7 15. Re2 Re8 16. Rae1 Rxe2 17. Rxe2 Nf8 18. Bg3 Kg7 19. Qe3 Ne6 20. Be5 Bxe5 21. Qxe5+ Qf6 22. g3 Qxe5 23. Rxe5 Kf6 24. Kg2 a5 25. f4 Rd8 26. f5 Ng7 27. g4 g5 28. Kg3 Re8 29. h4 h6 30. Rxe8 Nxe8 31. a4 Ke7 32. b4 f6 33. hxg5 hxg5 34. Kf3 Kd7 35. b5 Kc7 1/2-1/2

[Event "TUR-ch U13-18 Open 2023"]
[Site "Antalya"]
[Date "2023.01.27"]
[Round "9"]
[White "Tarhan, Adar"]
[Black "Kazik, Oguz Kagan"]
[Result "*"]
[ECO "E05"]
[WhiteElo "2321"]
[BlackElo "2053"]
[Annotator "TA"]
[PlyCount "45"]
[EventDate "2023.01.17"]
[EventType "swiss"]
[EventCountry "TUR"]
[SourceTitle "playchess.com"]
[Source "ChessBase"]
[SourceQuality "1"]
[TimeControl "5400+30"]

{[%evp 24,32,27,31,16,18,21,8,29,25,18]} 1. d4 {[%emt 0:01:00]} d5 {[%emt 0:06:00]} 2. c4 {[%emt 0:00:30]} e6 {[%emt 0:00:30]} 3. Nf3 {[%emt 0:00:30]} Nf6 {[%emt 0:00:30]} 4. g3 {[%emt 0:00:00]} Be7 {[%emt 0:00:00]} 5. Bg2 {[%emt 0:00:00]} O-O {[%emt 0:00:00]} 6. O-O {[%emt 0:00:30]} dxc4 {[%emt 0:00:30]} 7. Qc2 {[%emt 0:00:30]} a6 {[%emt 0:00:30]} 8. a4 {[%emt 0:00:30]} Bd7 {[%emt 0:00:30]} 9. Qxc4 {[%emt 0:00:30]} Bc6 {[%emt 0:00:30]} 10. Bg5 {[%emt 0:00:30]} Nbd7 {[%emt 0:00:30][%cal Bb8d7,Bd7f6,Bf6e4][%mdl 32]} 11. Nc3 {[%emt 0:00:00]} h6 {[%emt 0:00:00]} 12. Bxf6 {[%emt 0:00:00]} Nxf6 {[%emt 0:00:00]} 13. b4 {[%emt 0:00:00] 13.Rfd1 is the modern continuation.} Bd5 {[%emt 0:06:30] E05: Open Catalan: 5 Nf3 Be7.} 14. Nxd5 {[%emt 0:00:00]} exd5 {[%emt 0:01:30]} 15. Qb3 {[%emt 0:00:00]} c6 {[%emt 0:00:30]} 16. e3 {[%emt 0:00:00]} Ne4 {[%emt 0:01:30] [#] Not much happened in this game.   Weighted Error Value: White=0.01 (flawless) /Black=0.08 (flawless)} {Predecessor:} 17. Rfc1 $146 Bf6 18. Rab1 Re8 19. b5 axb5 20. axb5 Qd7 21. bxc6 bxc6 22. Rc2 Qd6 23. Rbc1 {½-½ Xiong,J (2656)-Wang,H (2722) Douglas IoM op 2018 (6)} *

[Event "TUR-ch U13-18 Open 2023"]
[Site "Antalya"]
[Date "2023.01.27"]
[Round "9"]
[White "Taspinar, Yanki"]
[Black "Ergin, Sahin"]
[Result "1/2-1/2"]
[ECO "B01"]
[WhiteElo "2275"]
[BlackElo "1878"]
[Annotator "TA"]
[PlyCount "105"]
[EventDate "2023.01.17"]
[EventType "swiss"]
[EventCountry "TUR"]
[SourceTitle "playchess.com"]
[Source "ChessBase"]
[SourceQuality "1"]
[TimeControl "5400+30"]

{[%evp 10,105,48,56,55,58,59,31,50,50,50,50,54,53,72,56,63,51,54,50,50,47,52,44,54,29,51,45,50,52,62,69,55,61,97,107,94,86,104,101,95,93,66,46,63,31,39,41,84,7,12,8,8,0,0,0,0,0,18,12,21,15,21,0,0,0,0,0,32,32,32,40,64,8,8,8,8,0,0,-8,-8,-8,-8,-8,0,-8,0,0,0,0,0,0,0,0,0,0,0,0]} 1. e4 d5 2. exd5 Qxd5 3. Nc3 Qd8 4. d4 Nf6 5. Nf3 Bg4 6. h3 Bxf3 {B01: Scandinavian Defence.} 7. Qxf3 c6 8. g4 {[%cal Bg2g4,Bg4g5][%mdl 32]} e6 {White is slightly better.} 9. g5 Nd5 10. Bd2 Nxc3 11. Qxc3 {[#]} a5 $146 {[%emt 0:30:00]} ({Predecessor:} 11... Qd5 12. Rg1 Nd7 13. Bc4 Qe4+ 14. Kf1 Bd6 15. Re1 Qf5 16. Rg4 Nb6 17. Be2 Qd5 {1-0 Tan,J (2496)-Puccini,J (2306) Begonia op 55th 2021 (4)}) 12. Qb3 {[%emt 0:30:30] Inhibits Bb4.} Qxd4 {[%emt 0:11:30]} 13. Qxb7 {[%emt 0:01:30]} Qe4+ {[%emt 0:00:30]} 14. Be3 {[%emt 0:02:30]} Qb4+ {[%emt 0:00:00]} 15. Qxb4 {[%emt 0:00:30]} axb4 {[%emt 0:01:00]} 16. Bg2 {[%emt 0:15:30][%cal Bf1g2,Bg2e4,Be4d3][%mdl 32]} Be7 {[%emt 0:13:30]} 17. h4 {[%emt 0:05:30]} O-O {[%emt 0:10:30]} 18. Ke2 $36 {[%emt 0:09:30][%mdl 2048] White is more active.} Rc8 {[%emt 0:15:26]} 19. Rhd1 {[%emt 0:04:30]} Kf8 {[%emt 0:01:17]} 20. Be4 {[%emt 0:00:30] White is more active.} Ra5 {[%emt 0:01:46]} 21. f4 {[%emt 0:06:30]} (21. Bxh7 g6 $11) 21... f5 {[%emt 0:07:58] [#]} 22. Bd3 {[%emt 0:04:30]} Bc5 {[%emt 0:04:14]} 23. Bd2 {[%emt 0:01:29][%cal Oa2a3]} Nd7 {[%emt 0:01:45] [#]} 24. a3 $1 {[%emt 0:05:18][%mdl 512]} Rca8 {[%emt 0:00:25]} (24... Rb8 25. axb4) 25. Rab1 {[%emt 0:02:59]} (25. Bxb4 $2 Bxb4 $19) 25... Rb8 {[%emt 0:00:36]} 26. axb4 {[%emt 0:01:33]} Bxb4 {[%emt 0:00:30]} 27. c3 {[%emt 0:04:50]} Bd6 {[%emt 0:00:18]} 28. b4 {[%emt 0:00:30]} Ra3 {[%emt 0:01:12] [#]} 29. Ra1 {[%emt 0:01:02]} (29. Bc1 $1 $16 {[%cal Rc1a3]} Ra2+ 30. Kf3) 29... Rba8 $11 {[%emt 0:00:29]} 30. Rxa3 {[%emt 0:01:56]} Rxa3 {[%emt 0:00:01]} 31. Rb1 {[%emt 0:03:03]} Ke7 {[%emt 0:02:11]} 32. h5 {[%emt 0:00:36]} Nb6 {[%emt 0:00:39]} 33. c4 {[%emt 0:01:02][%cal Bc3c4,Bc4c5][%mdl 32] Dodges Nd5. c5 would be deadly.} Nd7 {[%emt 0:00:39]} 34. c5 {[%emt 0:00:55]} Bc7 {[%emt 0:00:13]} 35. Rc1 {[%emt 0:00:33]} Ra2 {[%emt 0:00:38]} 36. Rc4 {[%emt 0:00:39]} g6 {[%emt 0:00:02]} 37. hxg6 {[%emt 0:00:33]} hxg6 {[%emt 0:00:30]} 38. Rc2 {[%emt 0:00:30]} Rxc2 {[%emt 0:00:30]} 39. Bxc2 {[%emt 0:00:30][%mdl 4096] Endgame KBB-KBN} e5 {[%emt 0:00:30]} 40. Ba4 {[%emt 0:00:30]} Nb8 {[%emt 0:00:30]} 41. Bc3 {[%emt 0:00:30]} (41. fxe5 $1 $14 Bxe5 42. Kd3) 41... exf4 {[%emt 0:00:30] The position is equal.} 42. Bf6+ {[%emt 0:00:30]} Kd7 {[%emt 0:00:30]} 43. Bb3 {[%emt 0:00:30] Hoping for Bf7.} Bd8 {[%emt 0:00:30]} 44. Kf3 {[%emt 0:00:30]} Bxf6 {[%emt 0:00:30]} 45. gxf6 {[%emt 0:00:30] KB-KN} g5 {[%emt 0:00:30]} 46. Bc4 {[%emt 0:00:30]} Ke8 {[%emt 0:00:30] Threatens to win with ...Nd7.} 47. b5 {[%emt 0:00:30]} cxb5 {[%emt 0:00:30]} (47... Nd7 $5 {[%cal Rd7e5]} 48. b6 (48. bxc6 $2 {loses.} Nxf6 49. Kg2 Kd8 $19) (48. f7+ Kf8 $11) 48... Nxc5 $11) 48. c6 {[%emt 0:00:30] White wants to mate with c7.} Nxc6 {[%emt 0:00:30]} (48... bxc4 {is a self mate.} 49. c7 Nd7 50. c8=Q+ (50. c8=B $2 {too greedy.} c3 $19) 50... Kf7 51. Qxd7+ Kxf6 52. Qd6+ Kf7 53. Qe5) (48... Na6 $5 {[%cal Rb5c4]} 49. Bxb5 Nc7 $11) 49. Bxb5 {[%emt 0:00:30]} Kf7 {[%emt 0:00:30] ( -> ...Nd4+)} 50. Bxc6 {[%emt 0:00:30]} Kxf6 {[%emt 0:00:30]} 51. Kf2 {[%emt 0:00:30]} g4 {[%emt 0:00:30]} 52. Bb7 {[%emt 0:00:30]} Kg5 {[%emt 0:00:30]} 53. Bc6 {[%emt 0:00:30] Weighted Error Value: White=0.08 (flawless) /Black=0.06 (flawless)} 1/2-1/2

[Event "TUR-ch U13-18 Open 2023"]
[Site "Antalya"]
[Date "2023.01.27"]
[Round "9"]
[White "Ince, Taylan Ruzgar"]
[Black "Bektas, Cagan Erdem"]
[Result "*"]
[WhiteElo "2267"]
[BlackElo "1752"]
[Annotator "TA"]
[PlyCount "13"]
[EventDate "2023.01.17"]
[EventType "swiss"]
[EventCountry "TUR"]
[SourceTitle "playchess.com"]
[Source "ChessBase"]
[SourceQuality "1"]
[TimeControl "5400+30"]

{[%evp 11,13,12,4,-60]} 1. e4 {[%emt 0:02:00]} d5 {[%emt 0:02:00]} 2. Nc3 {[%emt 0:00:00]} Nf6 {[%emt 0:00:30]} 3. d4 {[%emt 0:00:00]} Bg4 {[%emt 0:00:30]} 4. Nf3 {[%emt 0:00:30]} Bxf3 {[%emt 0:00:30]} 5. h3 {[%emt 0:00:30]} c6 {[%emt 0:00:30]} 6. Qxf3 {[%emt 0:00:30]} e6 {[%emt 0:11:30] [#] is recently more successful than 6...dxe4.} 7. g4 $146 {[%emt 0:00:00] An uneventful encounter.  B11: Caro-Kann: Two Knights Variation.} ({White should play} 7. exd5 $11 cxd5 8. Bb5+ Nc6 9. Bg5) ({Predecessor:} 7. exd5 cxd5 8. Bd3 Nc6 9. Ne2 Nb4 10. Bb5+ Nd7 11. Ba4 b5 12. Bb3 Nc6 13. c3 Bd6 14. O-O Rc8 {0-1 Topalov,V (2728)-Carlsen,M (2864) Zagreb SuperUnited Rapid 2022 (2)}) *

[Event "TUR-ch U13-18 Open 2023"]
[Site "Antalya"]
[Date "2023.01.27"]
[Round "9"]
[White "Ince, Taylan Ruzgar"]
[Black "Tarhan, Adar"]
[Result "1-0"]
[ECO "E05"]
[WhiteElo "2267"]
[BlackElo "2321"]
[Annotator "TA"]
[PlyCount "98"]
[EventDate "2023.01.17"]
[EventType "swiss"]
[EventCountry "TUR"]
[SourceTitle "playchess.com"]
[Source "ChessBase"]
[SourceQuality "1"]
[TimeControl "5400+30"]

{[%evp 24,97,11,18,20,29,18,20,29,18,27,25,20,0,0,-13,-13,-7,-7,-7,0,0,12,11,16,0,45,39,92,99,91,88,92,87,110,132,131,138,126,135,142,135,136,136,136,143,262,262,247,247,262,262,247,251,646,646,639,624,546,526,718,708,745,745,734,737,734,717,730,639,677,551,29979,29979,29979,29980]} 1. d4 d5 2. c4 e6 3. Nf3 Nf6 4. g3 Be7 5. Bg2 O-O 6. O-O dxc4 7. Qc2 a6 8. a4 Bd7 9. Qxc4 Bc6 10. Bg5 Nbd7 {[%cal Bb8d7,Bd7f6,Bf6e4][%mdl 32]} 11. Nc3 h6 12. Bxf6 Nxf6 13. b4 {13.Rfd1 is the modern continuation.} Bd5 {E05: Open Catalan: 5 Nf3 Be7.} 14. Nxd5 exd5 15. Qb3 c6 {The position is equal.} 16. e3 Ne4 17. Rfc1 Qb6 {[%emt 0:25:00] [#]} 18. Ne5 $146 {[%emt 0:33:30] aiming for Bxe4.} ({Predecessor:} 18. Rab1 Rfd8 19. Bf1 Bd6 20. Rc2 Nf6 21. Bg2 Ne4 22. Ne1 a5 23. b5 Rab8 24. Nd3 {1-0 Kamsky,G (2665)-Nakar,E (2479) Gibraltar Masters 14th 2016 (7)}) 18... Qxb4 {[%emt 0:05:30]} (18... Bxb4 $2 19. Bxe4 Rfc8 20. Bf5 $18) 19. Qxb4 {[%emt 0:00:30]} Bxb4 {[%emt 0:00:30]} 20. Bxe4 {[%emt 0:00:30]} dxe4 {[%emt 0:00:30]} 21. a5 {[%emt 0:00:00]} Bd6 {[%emt 0:01:30]} 22. Nc4 {[%emt 0:02:00]} Bc7 {[%emt 0:00:30]} 23. Rab1 {[%emt 0:01:30]} Ra7 {[%emt 0:01:30]} 24. Rb2 {[%emt 0:03:30]} Rd8 {[%emt 0:01:30]} 25. Rcb1 {[%emt 0:03:30]} Rd5 {[%emt 0:00:30]} ({Better is} 25... Rb8 $1 $14) 26. Rxb7 $16 {[%emt 0:00:30] Black is on the road to losing.} Rxb7 {[%emt 0:00:00]} 27. Rxb7 {[%emt 0:01:30]} Bxa5 {[%emt 0:00:00][%mdl 4096] Endgame [#] KRB-KRN} 28. Ra7 $1 {[%emt 0:02:30] White is more active.} Bb4 {[%emt 0:02:30]} 29. Rxa6 {[%emt 0:00:30]} c5 {[%emt 0:00:00]} 30. Ra8+ {[%emt 0:04:30]} Kh7 {[%emt 0:00:00]} 31. Rb8 {[%emt 0:00:30] Dodges cxd4} Kg6 {[%emt 0:05:30]} 32. Rb5 {[%emt 0:00:30]} Kf6 {[%emt 0:00:00]} 33. Nb6 {[%emt 0:00:30]} Rd6 {[%emt 0:01:00]} 34. Na4 {[%emt 0:03:30]} Ra6 {[%emt 0:03:30]} (34... cxd4 $2 35. Rxb4 Ke5 36. Rb5+ Rd5 37. exd4+ Kxd4 38. Rb7 $18) (34... Ke6 $16 35. Nxc5+ (35. dxc5 Rd1+ 36. Kg2 Be1 $16) 35... Bxc5) 35. Nxc5 $18 {[%emt 0:01:30]} Bxc5 {[%emt 0:00:30]} 36. Rxc5 {[%emt 0:00:30] KR-KR} ({Not} 36. dxc5 Ke6 $16) 36... Kg6 {[%emt 0:00:30]} 37. g4 {[%emt 0:00:00][%cal Bg3g4,Bg4f5][%mdl 32]} f6 {[%emt 0:00:00]} 38. Rc7 {[%emt 0:05:00]} f5 $2 {[%emt 0:02:00]} (38... Ra8 39. Kg2 Rh8) 39. gxf5+ {[%emt 0:00:30]} Kf6 {[%emt 0:00:30]} 40. Rc5 {[%emt 0:00:30]} Kg5 {[%emt 0:00:30]} 41. Re5 {[%emt 0:00:30]} Kg4 {[%emt 0:00:30]} 42. Kg2 {[%emt 0:00:30]} h5 {[%emt 0:00:30]} 43. h3+ {[%emt 0:03:30]} Kg5 {[%emt 0:00:30]} 44. f6+ {[%emt 0:00:00][%mdl 64] Deflection} Kxf6 {[%emt 0:00:00]} 45. Rxh5 {[%emt 0:00:00]} Re6 {[%emt 0:00:00]} 46. Kg3 {[%emt 0:00:30]} g6 {[%emt 0:00:00] [#]} 47. Re5 {[%emt 0:00:30] Threatening mate with Rxe6+.} Rxe5 {[%emt 0:01:00]} (47... Rb6 48. Rxe4) 48. dxe5+ {[%emt 0:00:30]} Kxe5 {[%emt 0:00:30]} 49. Kg4 {[%emt 0:00:30]} Kd5 {[%emt 0:00:00] Weighted Error Value: White=0.04 (flawless) /Black=0.29 (precise)} 1-0